Workbook

Sheet Input og resultat
A1: Nedbørskarakteristika | I1: Pil ikke - intern beregning | L1: Jord- og nedsivningskarakteristika
A2: Kommune | B2: Solrød | I2: Afskærende lednings kapacitet l/s | J2: 40 | L2: Ved indtastning af og beregning af K-værdi, benyttes en af to følgende metoder;
I3: Volumen m³ | J3: =IDF!M15 -> 0.1181398104 | L3: Hvis nedsivningstest benyttes, skal K-indtastet sættes til 1, benyttes k-indtastet skal synketest sættes til 500 cm og 0,05 min
A4: Designkarakteristika | I4: Total opland (m²) | J4: 1000 | L4: Nedsivningstest
A5: Gentagelsesperiode (år) | B5: 5 | C5: år | L5: Vandet er sunket antal cm | M5: 40 | N5: cm
A6: Sikkerhedsfaktor (klima, fremtidig udbygning, etc) | B6: 1.25 | F6: Beregningstjek | G6: Vol m³ | H6: Dræn kap l/s | I6: Iterationsafstand | J6: Antal iterationer | L6: på antal minutter | M6: 5 | N6: min
A7: Oplandskarakteristika | E7: Faskine | F7: =IF(ABS((H7-B20)/H7)<0.001,"OK","Beregn") -> OK | G7: 2.148231056 | H7: 1.038493406 | I7: 0.0008765335 | J7: 21 | L7: K (Hydraulisk ledningsevne) udregnet | M7: =((M5/100)/(M6*60)) -> 0.001333333333 | N7: m/s
A8: Befæstet areal (m²) | B8: 172 | C8: m² | E8: Regnbed | F8: =IF(ABS((H8-B26)/H8)<0.001,"OK","Beregn") -> OK | G8: 2.718894823 | H8: 0.8 | I8: 0 | J8: 1
E9: Grøft | F9: =IF(ABS((H9-B35)/H9)<0.001,"OK","Beregn") -> OK | G9: 1.670865693 | H9: 2.505478788 | I9: 3.934365839e-05 | J9: 2
A10: Jord- og nedsivningskarakteristika | E10: Perm. bel. | F10: =IF(ABS((H10-B44)/H10)<0.001,"OK","Beregn") -> OK | G10: 0.1181398104 | H10: 40 | I10: 0 | J10: 1 | L10: K (Hydraulisk ledningsevne) indtastet | M10: 0.0001 | N10: m/s
A11: K (Hydraulisk ledningsevne) - se evt måling nederst | B11: =MIN(M7,M10) -> 0.0001 | C11: m/s
A14: Faskine | E14: Hjælpestørrelser, faskine | I14: Dimensionerende kasseregn, Afløbsteknik s. 269
A15: Bredde | B15: 0.5 | C15: m | E15: Opstuvningsvolumen | G15: =F_bredde*F_hojde*F_hulrum*F_laengde -> 2.148231056 | H15: [m³] | I15: Vr,k (mm) | J15: 10.4080962
A16: Højde | B16: 0.4 | C16: m | E16: Faskine volumen | G16: =G15/F_hulrum -> 2.261295849 | H16: [m³] | I16: Varighed (h) | J16: 0.2519089167
A17: Hulrums andel i faskine [Plast: 0,95, sten: 0,25] | B17: 0.95 | C17: 0-1 | E17: Regn, der holdes umiddelbart | G17: =G15/B8*1000 -> 12.48971544 | H17: [mm]
A18: Udsivning i faskinebund: 0=Nej ,1=ja | B18: 1 | E18: Regn, der siver pr døgn | G18: =B20*86400/B8 -> 521.20455 | H18: [mm/døgn] | I18: Karakteritika for dimensionerende kasseregn
A19: Længde faskine | B19: =G7/(B15*B16*B17) -> 11.30647924 | C19: m | E19: Tømmetid | F19: =ROUND(G19/60/60,0) -> 1 | G19: =G15/(B20/1000) -> 2070.418254 | H19: [s] | I19: Samlet nedbør (mm) | J19: =J15+G18/24*J16 -> 15.87876594
A20: Dræn kapacitet, gennemsnit | B20: =((B19+B15)*B16+B18*B19*B15)*B11*1000 -> 1.037583132 | C20: l/s | E20: Afløbstal | G20: =B20/B8*10000 -> 60.32460069 | H20: [l/sek/ha] | I20: Intensitet (l/sek/ha) | J20: =J19*10000/(J16*3600) -> 175.0937749
A23: Regnbed | E23: Hjælpestørrelser, regnbed | I23: Dimensionerende kasseregn, Afløbsteknik s. 269
A24: Areal regnbed | B24: 8 | C24: m² | E24: Opstuvningsvolumen | G24: =R_dybde*B24 -> 2.718894823 | H24: [m³] | I24: Vr,k (mm) | J24: 12.58747603
A25: Dybde | B25: =G8/R_areal -> 0.3398618529 | C25: m | E25: Regn, der holdes umiddelbart | G25: =G24/R_sam_opland*1000 -> 15.10497124 | H25: [mm] | I25: Varighed (h) | J25: 0.3628229055
A26: Dræn kapacitet | B26: =B24*B11*1000 -> 0.8 | C26: l/s | E26: Regn, der siver pr døgn | G26: =B26*86400/R_sam_opland -> 384 | H26: [mm/døgn] | I26: Karakteritika for dimensionerende kasseregn
A27: Samlet opland (befæstet areal + eget areal) | B27: =B8+B24 -> 180 | C27: m² | E27: Tømmetid | F27: =ROUND(G27/60/60,0) -> 1 | G27: =G24/(B26/1000) -> 3398.618529 | H27: [s] | I27: Samlet nedbør (mm) | J27: =J24+G26/24*J25 -> 18.39264252
E28: Afløbstal | G28: =R_draenkapacitet/R_sam_opland*10000 -> 44.44444444 | H28: [l/sek/ha] | I28: Intensitet (l/sek/ha) | J28: =J27*10000/(J25*3600) -> 140.8143557
A31: Grøft / wadi, V-formet | E31: Hjælpestørrelser, grøft | I31: Dimensionerende kasseregn, Afløbsteknik s. 269
A32: Bredde (kronekant) | B32: 2 | C32: m | E32: Opstuvningsvolumen | G32: =0.5*B32*B34*B33 -> 1.670865693 | H32: [m³] | I32: Vr,k (mm) | J32: 6.272018367
A33: Længde grøft | B33: 25 | C33: m | E33: Regn, der holdes umiddelbart | G33: =G32/B36*1000 -> 7.526422041 | H33: [mm] | I33: Varighed (h) | J33: 0.1230672154
A34: Dybde | B34: =(G9*2)/(G_bredde*G_Laengde) -> 0.06683462772 | C34: m | E34: Regn, der siver pr døgn | G34: =G32/(G35/86400)/G_sam_opl*1000 -> 975.1436223 | H34: [mm/døgn] | I34: Karakteritika for dimensionerende kasseregn
A35: Dræn kapacitet, gns-snit | B35: =G32/G35*1000 -> 2.505577363 | C35: l/s | E35: Tømmetid | F35: =ROUND(G35/60/60,0) -> 0 | G35: =G_bredde/(2*B11*SQRT(1+(G_bredde/(2*G_dybde))^2)) -> 666.8585524 | H35: [s] | I35: Samlet nedbør (mm) | J35: =J32+G34/24*J33 -> 11.27236046
A36: Samlet opland (befæstet areal + eget areal) | B36: =B8+G_Laengde*G_bredde -> 222 | C36: m² | E36: Afløbstal | G36: =G_draenkapacitet/G_sam_opl*10000 -> 112.8638452 | H36: [l/sek/ha] | I36: Intensitet (l/sek/ha) | J36: =J35*10000/(J33*3600) -> 254.4309814
A39: Permeabel belægning | E39: Hjælpestørrelser, perm. belægning | I39: Dimensionerende kasseregn, Afløbsteknik s. 269
A40: Areal af permeabel belægning | B40: 400 | C40: m² | E40: Opstuvningsvolumen | G40: =P_belaegning*B43*B42/1000 -> 0.1181398104 | H40: [m³] | I40: Vr,k (mm) | J40: 0.09844984199
A41: Areal af tilstødende afvandingsareal (tag, vej, etc) | B41: 600 | C41: m² | E41: Belægningsvolumen | G41: =P_belaegning*B43/1000 -> 0.3937993679 | H41: [m³] | I41: Varighed (h) | J41: 0.02927869442
A42: Hulrumsandel af lag under belægning [0-1] | B42: 0.3 | C42: 0-1 | E42: Regn, der holdes umiddelbart | G42: =G40/(P_belaegning+P_tilst_areal)*1000 -> 0.1181398104 | H42: [mm]
A43: Dybde af lag under belægning | B43: 0.9844984199 | C43: mm | E43: Regn, der siver pr døgn | G43: =G40/(G44/86400)/(P_belaegning+P_tilst_areal)*1000 -> 3456 | H43: [mm/døgn] | I43: Karakteritika for dimensionerende kasseregn
A44: Dræn kapacitet | B44: =B40*B11*1000 -> 40 | C44: l/s | E44: Tømmetid | F44: =ROUND(G44/60/60,0) -> 0 | G44: =G40/(B44/1000) -> 2.95349526 | H44: [s] | I44: Samlet nedbør (mm) | J44: =J40+G43/24*J41 -> 4.314581838
E45: Afløbstal | G45: =B44/(P_belaegning+P_tilst_areal)*10000 -> 400 | H45: [l/sek/ha] | I45: Intensitet (l/sek/ha) | J45: =J44*10000/(J41*3600) -> 409.3402998
A49: Tabelværdier for den hydrauliske ledningsevne, K. Værdierne rækker over et stort spænd og K skal måles aktuelt på stedet.
A50: Grus | B50: 1e-3 til 0,1 | C50: m/s | D50: 3.600 - 360.000 | E50: mm/ time
A51: Sand: | B51: 1e-5 til 1e-2 | C51: m/s | D51: 36 - 36.000 | E51: mm/ time
A52: Silt: | B52: 1e-9 til 1e-5 | C52: m/s | D52: 0,0036 - 36 | E52: mm/ time
A53: Ren ler: | B53: under 1,0e-9 | C53: m/s | D53: under 0,0036 | E53: mm/ time
A54: Moræneler | B54: 1e-10 til 1e-6 | C54: m/s | D54: 0,00036 - 3,6 | E54: mm/ time

Sheet IDF
M1: Bassindimensionering opstrøms udløb | T1: Regression | AD1: Sæt optimering i gang
M2: Oplandskarakteristika | AD2: Initdummy
M3: Befæstet areal (ha) | Q3: ='Input og resultat'!J4/10000 -> 0.1 | T3: Estimates, 3 parameters: | AD3: =initdummy(B3,B4,B8,B9,B10,I3,I4,I5,Q3,Q4,Q5) -> 1
M4: Hydrologisk reduktionsfaktor (-) | Q4: 1 | T4: Alpha | U4: =EXP(X22/10+U7*W22/10) -> 164.0179644
A5: Årsmiddelnedbør [mm] | B5: =VLOOKUP('Input og resultat'!B2,Kommuneliste!A3:C101,2,FALSE) -> 632.9845545 | C5: Fås fra kommunelisten | M5: Afskærende lednings kapacitet (l/s) | Q5: ='Input og resultat'!J2 -> 40 | T5: Theta | U5: =AD11 -> 4.603272408 | AD5: idftheta | AE5: theta
A6: Middelværdi Klimagrid [mm/dag] | B6: =VLOOKUP('Input og resultat'!B2,Kommuneliste!A3:C101,3,FALSE) -> 28.07431844 | C6: Fås fra kommunelisten
T7: Nu | U7: =-(Z22-W22*X22/10)/(Y22-W22^2/10) -> 0.7502668235 | AD7: =idftheta(AE7) -> 0.1089139019 | AE7: 1
A8: Gentagelsesperiode (år) | B8: ='Input og resultat'!B5 -> 5 | C8: =IF(B8<1/help1!C11,CONCATENATE(" Fejl: Indtast gentagelsesperiode > ",ROUND(1/help1!C11,2)," år")," ") ->  | M8: NB. Frekvens- og sikkerhedsfaktorer på regnen | AD8: derividf | AE8: x
A9: Sikkerhedsfaktor (Fra Skrift 27) | B9: ='Input og resultat'!B6 -> 1.25 | C9: Defineret i Skrift 27, Faktor til beskrivelse af usikkerhed, klima, mv. Typisk 1.0 - 1.8 | M9: indgår ved beregning af bassinvolumen | T9: Dur (min) | U9: Intensity | V9: ln(dur) | W9: ln(dur+Theta) | X9: ln(int) | Y9: ln(dur+Theta)^2 | Z9: ln(dur+Theta)*ln(int) | AA9: Est. Intensity | AB9: Obj.Func | AD9: =derividf(AE9) -> -0.08766766771 | AE9: =AE7 -> 1
AD10: bisectidf | AE10: min | AF10: max | AG10: middel | AH10: tiny
T11: =IDF!A19 -> 2 | U11: =IDF!D19 -> 39.45681928 | V11: =LN(T11) -> 0.6931471806 | W11: =LN(T11+$U$5) -> 1.887565345 | X11: =LN(U11) -> 3.675206891 | Y11: =W11^2 -> 3.562902934 | Z11: =W11*X11 -> 6.937193165 | AA11: =$U$4*(T11+$U$5)^(-$U$7) -> 39.79726952 | AB11: =(LN(U11)-LN(AA11))^2 -> 7.381238846e-05 | AD11: =bisectidf(AE11,AF11,AG11,AH11) -> 4.603272408 | AE11: 0 | AF11: 60 | AG11: =(AE11+AF11)/2 -> 30 | AH11: =AD3/100000 -> 1e-05
T12: =IDF!A20 -> 5 | U12: =IDF!D20 -> 30.21975434 | V12: 1.609437912 | W12: 2.262103916 | X12: 3.408495828 | Y12: 5.117114128 | Z12: 7.71037176 | AA12: 30.04795006 | AB12: 3.250581002e-05
T13: =IDF!A21 -> 10 | U13: =IDF!D21 -> 22.32024729 | V13: 2.302585093 | W13: 2.681245641 | X13: 3.105494217 | Y13: 7.189078188 | Z13: 8.326592832 | AA13: 21.94032594 | AB13: 0.0002947369982
A14: Design regnkurve | M14: Volumen af bassin | T14: =IDF!A22 -> 30 | U14: =IDF!D22 -> 11.44030726 | V14: 3.401197382 | W14: 3.543948256 | X14: 2.437142844 | Y14: 12.55956924 | Z14: 8.637108131 | AA14: 11.48531382 | AB14: 1.541595934e-05
M15: =Q24*Q27*12 -> 0.1181398104 | N15: m3 | O15: =IF(Y27>0.1,"ADVARSEL: Programmet har muligvis ikke optimeret korrekt"," ") ->  | T15: =IDF!A23 -> 60 | U15: =IDF!D23 -> 7.020238415 | V15: 4.094344562 | W15: 4.168265066 | X15: 1.94879718 | Y15: 17.37443366 | Z15: 8.123103205 | AA15: 7.189811614 | AB15: 0.0005696714293
A16: Varighed | B16: zT | C16: S{zT} | D16: f*zT | E16: Regression | M16: Effekten af koblede regn ER inkluderet (20 % ekstra volumen) | T16: =IDF!A24 -> 180 | U16: =IDF!D24 -> 3.248796966 | V16: 5.192956851 | W16: 5.218209049 | X16: 1.178284763 | Y16: 27.22970568 | Z16: 6.148536215 | AA16: 3.270447525 | AB16: 4.411709344e-05
A17: (min) | B17: (mm/s) | C17: (mm/s) | D17: (mm/s) | E17: (mm/s) | T17: =IDF!A25 -> 360 | U17: =IDF!D25 -> 1.982630648 | V17: 5.886104031 | W17: 5.898809838 | X17: 0.684424573 | Y17: 34.7959575 | Z17: 4.037290404 | AA17: 1.962648117 | AB17: 0.000102615509
T18: =IDF!A26 -> 720 | U18: =IDF!D26 -> 1.19581712 | V18: 6.579251212 | W18: 6.585624295 | X18: 0.1788297345 | Y18: 43.37044735 | Z18: 1.177705444 | AA18: 1.17233858 | AB18: 0.0003931969308
A19: 2 | B19: =help1!B18 -> 31.56545543 | C19: =help1!C18 -> 1.562962717 | D19: =$B$9*B19 -> 39.45681928 | E19: =IDF!$U$4*(A19+IDF!$U$5)^(-IDF!$U$7) -> 39.79726952 | T19: =IDF!A27 -> 1440 | U19: =IDF!D27 -> 0.7056264042 | V19: 7.272398393 | W19: 7.275590011 | X19: -0.3486693541 | Y19: 52.93421001 | Z19: -2.53677527 | AA19: 0.6986133441 | AB19: 9.976996263e-05
A20: 5 | B20: =help1!B19 -> 24.17580347 | C20: =help1!C19 -> 1.060608522 | D20: 30.21975434 | E20: =IDF!$U$4*(A20+IDF!$U$5)^(-IDF!$U$7) -> 30.04795006 | T20: =IDF!A28 -> 2880 | U20: =IDF!D28 -> 0.4076704422 | V20: 7.965545573 | W20: 7.967142656 | X20: -0.8972961706 | Y20: 63.47536209 | Z20: -7.148886595 | AA20: 0.4158183172 | AB20: 0.000391617146
A21: 10 | B21: =help1!B20 -> 17.85619783 | C21: =help1!C20 -> 0.6463932371 | D21: 22.32024729 | E21: =IDF!$U$4*(A21+IDF!$U$5)^(-IDF!$U$7) -> 21.94032594 | M21: Mellemresultater svarende til Skrift 16
A22: 30 | B22: =help1!B21 -> 9.152245808 | C22: =help1!C21 -> 0.6641678857 | D22: 11.44030726 | E22: =IDF!$U$4*(A22+IDF!$U$5)^(-IDF!$U$7) -> 11.48531382 | M22: Dvs. at effekt af koblede regn IKKE er indkluderet | U22: Sum | W22: =SUM(W11:W20) -> 47.48850407 | X22: =SUM(X11:X20) -> 15.37071051 | Y22: 267.6087808 | Z22: =SUM(Z11:Z20) -> 41.41223929 | AB22: =SUM(AB11:AB20) -> 0.002017459227
A23: 60 | B23: =help1!B22 -> 5.616190732 | C23: =help1!C22 -> 0.4300126432 | D23: 7.020238415 | E23: =IDF!$U$4*(A23+IDF!$U$5)^(-IDF!$U$7) -> 7.189811614 | M23: i mellemresultaterne.
A24: 180 | B24: =help1!B23 -> 2.599037573 | C24: =help1!C23 -> 0.2082414616 | D24: 3.248796966 | E24: =IDF!$U$4*(A24+IDF!$U$5)^(-IDF!$U$7) -> 3.270447525 | M24: Reduceret areal (ha) | Q24: =Q3*Q4 -> 0.1
A25: 360 | B25: =help1!B24 -> 1.586104518 | C25: =help1!C24 -> 0.08543033108 | D25: 1.982630648 | E25: =IDF!$U$4*(A25+IDF!$U$5)^(-IDF!$U$7) -> 1.962648117 | M25: Afløbstal (mu-m/s | Q25: =Q5/(Q24*10) -> 40 | V25: Afløbstal | W25: tr, 3 par | X25: Vr,k 3 par | Y25: dV/dt | Z25: (dV/dt)^2 | AD25: dbasvol | AE25: alpha | AF25: nu | AG25: theta | AH25: t | AI25: a
A26: 720 | B26: =help1!B25 -> 0.9566536964 | C26: =help1!C25 -> 0.05101081115 | D26: 1.19581712 | E26: =IDF!$U$4*(A26+IDF!$U$5)^(-IDF!$U$7) -> 1.17233858 | M26: Varighed (h) | Q26: =W27/60 -> 0.02927869442 | V26: mu-m/s | W26: 1153.531525 | X26: (mm) | Y26: ( … ) | Z26: ( … ) | AD26: =dbasvol(AE26,AF26,AG26,AH26,AI26) -> -39.67675598 | AE26: =U4 -> 164.0179644 | AF26: =U7 -> 0.7502668235 | AG26: =AE7 -> 1 | AH26: 638 | AI26: =V27 -> 40
A27: 1440 | B27: =help1!B26 -> 0.5645011233 | C27: =help1!C26 -> 0.03237663405 | D27: 0.7056264042 | E27: =IDF!$U$4*(A27+IDF!$U$5)^(-IDF!$U$7) -> 0.6986133441 | M27: Vr,k (mm) | Q27: =X27 -> 0.09844984199 | T27: Faktisk opland | V27: =Q25 -> 40 | W27: =AD28 -> 1.756721665 | X27: =(U$4*(W27+U$5)^(-U$7)-V27)*W27*60/1000 -> 0.09844984199 | Y27: =$U$4*(W27+$U$5)^(-1-$U$7)*(W27+$U$5-$U$7*W27)-V27 -> -7.548911916 | Z27: =SQRT(Y27^2) -> 7.548911916 | AD27: bisectvol | AE27: xl | AF27: xr | AG27: xmid | AH27: tiny
A28: 2880 | B28: =help1!B27 -> 0.3261363538 | C28: =help1!C27 -> 0.01853696448 | D28: 0.4076704422 | E28: =IDF!$U$4*(A28+IDF!$U$5)^(-IDF!$U$7) -> 0.4158183172 | T28: Initialisering | W28: =(U$4*(1-U$7)/V27)^(1/U$7) -> 1.032140142 | AD28: =bisectvol(AE28,AF28,AG28,AH28,AE26,AF26,AG26,AI26) -> 1.756721665 | AE28: =0.3*W28 -> 0.3096420426 | AF28: =3*W28 -> 3.096420426 | AG28: =(AE28+AF28)/2 -> 1.703031234 | AH28: =AD3/100000 -> 1e-05
X30: Tilnærmet volumenkurve excl koblede regn. Tilnærmelsen er god op til ca. T=5 år
T31: Volumenkurve | V31: 0.01 | W31: =(U$4*(1-U$7)/V31)^(1/U$7) -> 65279.56991 | X31: =(U$4*(W31+U$5)^(-U$7)-V31)*W31*60/1000 -> 117.6623213
T32: Tilnærmet for store afløbstal | V32: =V31*1.2 -> 0.012 | W32: 51196.44864 | X32: 110.7319087
V33: 0.0144 | W33: 40151.55671 | X33: 104.2091475
V34: 0.01728 | W34: 31489.44017 | X34: 98.06994816
V35: 0.020736 | W35: 24696.04976 | X35: 92.29162264
V36: 0.0248832 | W36: 19368.23488 | X36: 86.85279819
V37: 0.02985984 | W37: 15189.81886 | X37: 81.73333593
V38: 0.035831808 | W38: 11912.83555 | X38: 76.91425328
V39: 0.0429981696 | W39: 9342.813907 | X39: 72.37764998
V40: 0.05159780352 | W40: 7327.237189 | X40: 68.10663745
V41: 0.06191736422 | W41: 5746.491942 | X41: 64.08527077
V42: 0.07430083707 | W42: 4506.769575 | X42: 60.29848322
V43: 0.08916100448 | W43: 3534.499345 | X43: 56.7320227
V44: 0.1 | W44: 3033.319348 | X44: 54.59466301
V45: 0.12 | W45: 2378.924653 | X45: 51.35857016
V46: 0.144 | W46: 1865.706131 | X46: 48.3087649
V47: 0.1728 | W47: 1463.207069 | X47: 45.43343699
V48: 0.20736 | W48: 1147.541346 | X48: 42.72130928
V49: 0.248832 | W49: 899.9759294 | X49: 40.16157696
V50: 0.2985984 | W50: 705.8191638 | X50: 37.74384612
V51: 0.35831808 | W51: 553.548907 | X51: 35.45807155
V52: 0.429981696 | W52: 434.1287515 | X52: 33.29449433
V53: 0.5159780352 | W53: 340.4717642 | X53: 31.24357992
V54: 0.6191736422 | W54: 267.0199147 | X54: 29.29595907
V55: 0.7430083707 | W55: 209.4142374 | X55: 27.44237458
V56: 1 | W56: 140.9480221 | X56: 24.60004395
V57: 1.2 | W57: 110.5405288 | X57: 22.94999951
V58: 1.44 | W58: 86.6930115 | X58: 21.36092087
V59: 1.728 | W59: 67.9902505 | X59: 19.82397015
V60: 2.0736 | W60: 53.32233918 | X60: 18.33067221
V61: 2.48832 | W61: 41.81881717 | X61: 16.87320218
V62: 2.985984 | W62: 32.79701335 | X62: 15.44480065
V63: 3.5831808 | W63: 25.72153297 | X63: 14.04032191
V64: 4.29981696 | W64: 20.17248495 | X64: 12.65689045
V65: =V64*1.2 -> 5.159780352 | W65: 15.82056363 | X65: 11.2945931
V66: =V65*1.2 -> 6.191736422 | W66: 12.40750628 | X66: 9.957073795
V67: =V66*1.2 -> 7.430083707 | W67: 9.730766591 | X67: 8.651843468
V68: =V67*1.2 -> 8.916100448 | W68: 7.631494703 | X68: 7.390100656
V69: 10 | W69: 6.549374685 | X69: 6.624678476

Sheet Kommuneliste
B1: Årsmiddelnedbør | C1: Middelværdi Klimagrid | D1: Northing | E1: Easting | F1: Faskinebund
A2: Kommuner | B2: mm | C2: mm/dag | D2: m | E2: m | F2: Nej/ja
A3: Albertslund | B3: 640.9312061 | C3: 27.88388782 | D3: 6175140 | E3: 710791 | F3: 0
A4: Allerød | B4: 685.9014811 | C4: 27.98066495 | D4: 6195096 | E4: 707641 | F4: 1
A5: Assens | B5: 715.0032098 | C5: 25.83901307 | D5: 6126050 | E5: 565439
A6: Ballerup | B6: 658.358364 | C6: 28.20318756 | D6: 6181137 | E6: 710019
A7: Billund | B7: 888.5522621 | C7: 26.43178782 | D7: 6177641 | E7: 498323
A8: Bornholm | B8: 694.8565373 | C8: 28.97795079 | D8: 6126753 | E8: 877619
A9: Brøndby | B9: 637.6940461 | C9: 27.70419622 | D9: 6171287 | E9: 714637
A10: Brønderslev | B10: 756.5929693 | C10: 27.06736537 | D10: 6340900 | E10: 565980
A11: Christiansø | B11: 575.9267455 | C11: 29.35172403 | D11: 6148265 | E11: 892218
A12: Dragør | B12: 608.698926 | C12: 26.94757639 | D12: 6164631 | E12: 729202
A13: Egedal | B13: 640.4804487 | C13: 28.32297565 | D13: 6184288 | E13: 702479
A14: Esbjerg | B14: 836.2227145 | C14: 25.10651354 | D14: 6140331 | E14: 475667
A15: Fanø | B15: 806.0079037 | C15: 25.14857876 | D15: 6140167 | E15: 463990
A16: Favrskov | B16: 670.5095117 | C16: 24.97980619 | D16: 6241884 | E16: 558870
A17: Faxe | B17: 650.6892776 | C17: 26.78445876 | D17: 6128922 | E17: 694309
A18: Fredensborg | B18: 722.5027314 | C18: 27.48468269 | D18: 6205785 | E18: 715168
A19: Fredericia | B19: 745.0973179 | C19: 24.84244444 | D19: 6158304 | E19: 544664
A20: Frederiksberg | B20: 639.2608763 | C20: 26.9300616 | D20: 6176349 | E20: 721564
A21: Frederikshavn | B21: 748.1189807 | C21: 27.29321783 | D21: 6369756 | E21: 584876
A22: Frederikssund | B22: 645.0942952 | C22: 27.76150685 | D22: 6190689 | E22: 690472
A23: Furesø | B23: 681.2515388 | C23: 28.16638306 | D23: 6189233 | E23: 711119
A24: Faaborg-Midtfyn | B24: 745.5394344 | C24: 26.36648989 | D24: 6115016 | E24: 586719
A25: Gentofte | B25: 668.622508 | C25: 27.50735787 | D25: 6184154 | E25: 722879
A26: Gladsaxe | B26: 679.7262364 | C26: 28.12285929 | D26: 6183289 | E26: 717732
A27: Glostrup | B27: 645.5199255 | C27: 27.72940137 | D27: 6176147 | E27: 713767
A28: Greve | B28: 624.1789707 | C28: 28.9093955 | D28: 6165017 | E28: 704840
A29: Gribskov | B29: 690.7578837 | C29: 28.3919847 | D29: 6216274 | E29: 700025
A30: Guldborgsund | B30: 636.3235704 | C30: 25.41848373 | D30: 6072506 | E30: 683158
A31: Haderslev | B31: 841.3271928 | C31: 24.97766634 | D31: 6123036 | E31: 521151
A32: Halsnæs | B32: 659.1867545 | C32: 28.52106959 | D32: 6214464 | E32: 680603
A33: Hedensted | B33: 741.7554551 | C33: 24.34744192 | D33: 6183658 | E33: 546660
A34: Helsingør | B34: 691.1310325 | C34: 28.57536971 | D34: 6215578 | E34: 718490
A35: Herlev | B35: 674.6380761 | C35: 28.16983921 | D35: 6181717 | E35: 715090
A36: Herning | B36: 922.4967116 | C36: 24.87988566 | D36: 6222360 | E36: 488223
A37: Hillerød | B37: 717.4798508 | C37: 28.01214422 | D37: 6202533 | E37: 702286
A38: Hjørring | B38: 745.5106991 | C38: 26.88134144 | D38: 6369341 | E38: 563173
A39: Holbæk | B39: 645.6288562 | C39: 27.44286819 | D39: 6171549 | E39: 664158
A40: Holstebro | B40: 854.746535 | C40: 25.67648824 | D40: 6250265 | E40: 472585
A41: Horsens | B41: 718.4522592 | C41: 24.86968161 | D41: 6195972 | E41: 557305
A42: Hvidovre | B42: 633.2818793 | C42: 27.51190515 | D42: 6170614 | E42: 718180
A43: Høje-Taastrup | B43: 631.2497437 | C43: 27.96361812 | D43: 6172586 | E43: 704380
A44: Hørsholm | B44: 710.4100217 | C44: 27.67922808 | D44: 6198682 | E44: 717692
A45: Ikast-Brande | B45: 842.2372388 | C45: 25.90760561 | D45: 6211985 | E45: 516252
A46: Ishøj | B46: 627.9751144 | C46: 28.28451667 | D46: 6168424 | E46: 708158
A47: Jammerbugt | B47: 749.3167486 | C47: 25.73646618 | D47: 6337636 | E47: 528838
A48: Kalundborg | B48: 583.1070231 | C48: 26.30694444 | D48: 6173653 | E48: 636338
A49: Kerteminde | B49: 598.8859359 | C49: 26.19067495 | D49: 6148437 | E49: 603683
A50: Kolding | B50: 827.7565268 | C50: 25.47574337 | D50: 6147082 | E50: 528789
A51: København | B51: 633.1019401 | C51: 26.45809601 | D51: 6175328 | E51: 725775
A52: Køge | B52: 642.2833973 | C52: 27.41797291 | D52: 6149215 | E52: 694171
A53: Langeland | B53: 610.2744559 | C53: 27.89461477 | D53: 6089983 | E53: 611537
A54: Lejre | B54: 643.9459897 | C54: 27.26017994 | D54: 6169481 | E54: 684300
A55: Lemvig | B55: 846.9745892 | C55: 25.94069334 | D55: 6265191 | E55: 458064
A56: Lolland | B56: 604.1626486 | C56: 27.77125801 | D56: 6077106 | E56: 646894
A57: Lyngby-Taarbæk | B57: 682.513254 | C57: 27.78490837 | D57: 6187757 | E57: 719786
A58: Læsø | B58: 668.9482492 | C58: 28.4002951 | D58: 6349069 | E58: 622309
A59: Mariagerfjord | B59: 740.5914554 | C59: 26.11942833 | D59: 6285038 | E59: 557124
A60: Middelfart | B60: 693.2404918 | C60: 25.36080253 | D60: 6144855 | E60: 555348
A61: Morsø | B61: 793.0218717 | C61: 25.62929303 | D61: 6298092 | E61: 485072
A62: Norddjurs | B62: 649.7074085 | C62: 27.33121749 | D62: 6265684 | E62: 619069
A63: Nordfyns | B63: 626.9074706 | C63: 25.5423839 | D63: 6153932 | E63: 580292
A64: Nyborg | B64: 668.4426611 | C64: 26.70136049 | D64: 6129361 | E64: 607638
A65: Næstved | B65: 645.0590946 | C65: 25.68274597 | D65: 6127462 | E65: 674417
A66: Odder | B66: 656.9120192 | C66: 25.00701443 | D66: 6198964 | E66: 577358
A67: Odense | B67: 687.0332698 | C67: 25.28092078 | D67: 6138435 | E67: 587298
A68: Odsherred | B68: 628.5389552 | C68: 27.73580495 | D68: 6194279 | E68: 658209
A69: Randers | B69: 684.3144764 | C69: 25.69208929 | D69: 6266926 | E69: 565781
A70: Rebild | B70: 776.1445147 | C70: 26.32601867 | D70: 6296559 | E70: 553453
A71: Ringkøbing-Skjern | B71: 870.8249867 | C71: 25.53503316 | D71: 6208221 | E71: 467531
A72: Ringsted | B72: 665.0665846 | C72: 27.79134536 | D72: 6149417 | E72: 677660
A73: Roskilde | B73: 638.1951934 | C73: 27.57303457 | D73: 6171202 | E73: 695850
A74: Rudersdal | B74: 705.318869 | C74: 27.7102731 | D74: 6193254 | E74: 718461
A75: Rødovre | B75: 646.2680487 | C75: 27.65648239 | D75: 6176969 | E75: 717002
A76: Samsø | B76: 567.8541262 | C76: 25.59485731 | D76: 6194234 | E76: 603482
A77: Silkeborg | B77: 783.1102137 | C77: 25.40478454 | D77: 6226357 | E77: 533715
A78: Skanderborg | B78: 736.2014298 | C78: 24.68668014 | D78: 6215944 | E78: 553758
A79: Skive | B79: 779.6990339 | C79: 25.3239614 | D79: 6280378 | E79: 499080
A80: Slagelse | B80: 581.1321454 | C80: 26.08760499 | D80: 6133333 | E80: 641892
A81: Solrød | B81: 632.9845545 | C81: 28.07431844 | D81: 6159241 | E81: 700281
A82: Sorø | B82: 654.6561741 | C82: 26.7895706 | D82: 6150817 | E82: 658922
A83: Stevns | B83: 627.1979172 | C83: 28.04376976 | D83: 6136582 | E83: 708161
A84: Struer | B84: 823.7704185 | C84: 26.59150599 | D84: 6266307 | E84: 472360
A85: Svendborg | B85: 725.8337705 | C85: 26.55065453 | D85: 6105259 | E85: 603707
A86: Syddjurs | B86: 653.056406 | C86: 26.2730198 | D86: 6237302 | E86: 593128
A87: Sønderborg | B87: 712.8908799 | C87: 25.55534971 | D87: 6090474 | E87: 549254
A88: Thisted | B88: 809.1704341 | C88: 25.01010049 | D88: 6307888 | E88: 478660
A89: Tønder | B89: 839.1639794 | C89: 25.13406266 | D89: 6101761 | E89: 490764
A90: Tårnby | B90: 613.6464772 | C90: 26.78266304 | D90: 6170134 | E90: 730909
A91: Vallensbæk | B91: 633.8566805 | C91: 27.81191532 | D91: 6170407 | E91: 712354
A92: Varde | B92: 893.3379214 | C92: 25.83558231 | D92: 6168689 | E92: 467933
A93: Vejen | B93: 926.617325 | C93: 25.76719198 | D93: 6145805 | E93: 502091
A94: Vejle | B94: 832.6526573 | C94: 24.67093428 | D94: 6179553 | E94: 525431
A95: Vesthimmerlands | B95: 735.9608806 | C95: 26.23067799 | D95: 6298903 | E95: 522297
A96: Viborg | B96: 744.1399375 | C96: 25.19978046 | D96: 6256251 | E96: 523745
A97: Vordingborg | B97: 629.147006 | C97: 25.78634145 | D97: 6100860 | E97: 697314
A98: Ærø | B98: 598.2776314 | C98: 26.81665261 | D98: 6083782 | E98: 588196
A99: Aabenraa | B99: 877.2059353 | C99: 25.31632293 | D99: 6093028 | E99: 520451
A100: Aalborg | B100: 715.7503754 | C100: 28.10061077 | D100: 6320099 | E100: 554145
A101: Aarhus | B101: 699.0328098 | C101: 25.37022436 | D101: 6224795 | E101: 572535

Sheet Tables (hidden)
A1: LAMBDA
A3: Variabel | B3: b_0 | C3: b_1 | D3: V(b_0) | E3: Cov | F3: V(b_1) | G3: Res.var. | I3: E(lambda) | J3: V(lambda) | L3: z_0
A4: i1m | B4: 0.4196 | C4: 0.005867 | D4: 1.018 | E4: -0.001424 | F4: 2.052e-06 | G4: 0.2585 | I4: =B4+C4*IDF!$B$5 -> 4.133320382 | J4: =D4+2*E4*IDF!$B$5+F4*IDF!$B$5^2+G4 -> 0.2959336924 | L4: 16.7
A5: i2m | B5: 0.8235 | C5: 0.003563 | D5: 0.4795 | E5: -0.000652 | F5: 9.338e-07 | G5: 0.07123 | I5: =B5+C5*IDF!$B$5 -> 3.078823968 | J5: =D5+2*E5*IDF!$B$5+F5*IDF!$B$5^2+G5 -> 0.09946326982 | L5: 14.9
A6: i5m | B6: 1.476 | C6: 0.002358 | D6: 0.426 | E6: -0.0005784 | F6: 8.288e-07 | G6: 0.05954 | I6: =B6+C6*IDF!$B$5 -> 2.96857758 | J6: =D6+2*E6*IDF!$B$5+F6*IDF!$B$5^2+G6 -> 0.08537830439 | L6: 10.6
A7: i10m | B7: 1.849 | C7: 0.001617 | D7: 0.4891 | E7: -0.0006716 | F7: 9.606e-07 | G7: 0.07872 | I7: =B7+C7*IDF!$B$5 -> 2.872536025 | J7: =D7+2*E7*IDF!$B$5+F7*IDF!$B$5^2+G7 -> 0.1024782164 | L7: 7.34
A8: i30m | B8: 1.825 | C8: 0.001608 | D8: 0.4262 | E8: -0.0005778 | F8: 8.253e-07 | G8: 0.05434 | I8: =B8+C8*IDF!$B$5 -> 2.842839164 | J8: =D8+2*E8*IDF!$B$5+F8*IDF!$B$5^2+G8 -> 0.07973554279 | L8: 3.74
A9: i60m | B9: 2.072 | C9: 0.001216 | D9: 0.5172 | E9: -0.0007054 | F9: 1.005e-06 | G9: 0.07326 | I9: =B9+C9*IDF!$B$5 -> 2.841709218 | J9: =D9+2*E9*IDF!$B$5+F9*IDF!$B$5^2+G9 -> 0.100118184 | L9: 2.39
A10: i3h | B10: 1.197 | C10: 0.002487 | D10: 0.6343 | E10: -0.0008709 | F10: 1.238e-06 | G10: 0.09659 | I10: =B10+C10*IDF!$B$5 -> 2.771232587 | J10: =D10+2*E10*IDF!$B$5+F10*IDF!$B$5^2+G10 -> 0.1243862774 | L10: 1.19
A11: i6h | B11: 0.06127 | C11: 0.004148 | D11: 0.7759 | E11: -0.00107 | F11: 1.522e-06 | G11: 0.1367 | I11: =B11+C11*IDF!$B$5 -> 2.686889932 | J11: =D11+2*E11*IDF!$B$5+F11*IDF!$B$5^2+G11 -> 0.1678319505 | L11: 0.753
A12: i12h | B12: -1.19 | C12: 0.005986 | D12: 0.722 | E12: -0.0009897 | F12: 1.407e-06 | G12: 0.1183 | I12: =B12+C12*IDF!$B$5 -> 2.599045544 | J12: =D12+2*E12*IDF!$B$5+F12*IDF!$B$5^2+G12 -> 0.1511122837 | L12: 0.453
A13: i24h | B13: -2.326 | C13: 0.007589 | D13: 0.6632 | E13: -0.0009061 | F13: 1.288e-06 | G13: 0.1028 | I13: =B13+C13*IDF!$B$5 -> 2.477719784 | J13: =D13+2*E13*IDF!$B$5+F13*IDF!$B$5^2+G13 -> 0.1349676371 | L13: 0.267
A14: i48h | B14: -3.663 | C14: 0.009581 | D14: 0.4845 | E14: -0.0006538 | F14: 9.303e-07 | G14: 0.05693 | I14: =B14+C14*IDF!$B$5 -> 2.401625017 | J14: =D14+2*E14*IDF!$B$5+F14*IDF!$B$5^2+G14 -> 0.08648218236 | L14: 0.16
A17: MEAN
A19: Variabel | B19: b_0 | C19: b_1 | D19: V(b_0) | E19: Cov | F19: V(b_1) | G19: Res.var. | I19: E(Mean) | J19: V(Mean)
A20: i1m | B20: 5.394 | C20: 0 | D20: 0.0173 | E20: 0 | F20: 0 | G20: 0.1627 | I20: =B20+C20*IDF!$B$6 -> 5.394 | J20: =D20+2*E20*IDF!$B$6+F20*IDF!$B$6^2+G20 -> 0.18
A21: i2m | B21: 5.688 | C21: 0 | D21: 0.01993 | E21: 0 | F21: 0 | G21: 0.1691 | I21: =B21+C21*IDF!$B$6 -> 5.688 | J21: =D21+2*E21*IDF!$B$6+F21*IDF!$B$6^2+G21 -> 0.18903
A22: i5m | B22: 4.791 | C22: 0 | D22: 0.01276 | E22: 0 | F22: 0 | G22: 0.0698 | I22: =B22+C22*IDF!$B$6 -> 4.791 | J22: =D22+2*E22*IDF!$B$6+F22*IDF!$B$6^2+G22 -> 0.08256
A23: i10m | B23: 3.877 | C23: 0 | D23: 0.007303 | E23: 0 | F23: 0 | G23: 0.01037 | I23: =B23+C23*IDF!$B$6 -> 3.877 | J23: =D23+2*E23*IDF!$B$6+F23*IDF!$B$6^2+G23 -> 0.017673
A24: i30m | B24: 1.951 | C24: 0 | D24: 0.002552 | E24: 0 | F24: 0 | G24: 0.01057 | I24: =B24+C24*IDF!$B$6 -> 1.951 | J24: =D24+2*E24*IDF!$B$6+F24*IDF!$B$6^2+G24 -> 0.013122
A25: i60m | B25: 1.163 | C25: 0 | D25: 0.001116 | E25: 0 | F25: 0 | G25: 0.006964 | I25: =B25+C25*IDF!$B$6 -> 1.163 | J25: =D25+2*E25*IDF!$B$6+F25*IDF!$B$6^2+G25 -> 0.00808
A26: i3h | B26: 0.2118 | C26: 0.01079 | D26: 0.08505 | E26: -0.00322 | F26: 0.0001223 | G26: 0.001089 | I26: =B26+C26*IDF!$B$6 -> 0.5147218959 | J26: =D26+2*E26*IDF!$B$6+F26*IDF!$B$6^2+G26 -> 0.001733256869
A27: i6h | B27: 0.009772 | C27: 0.01064 | D27: 0.02889 | E27: -0.001092 | F27: 4.14e-05 | G27: 0.0002294 | I27: =B27+C27*IDF!$B$6 -> 0.3084827482 | J27: =D27+2*E27*IDF!$B$6+F27*IDF!$B$6^2+G27 -> 0.0004352170598
A28: i12h | B28: -0.1288 | C28: 0.01134 | D28: 0.008804 | E28: -0.0003327 | F28: 1.263e-05 | G28: 3.256e-05 | I28: =B28+C28*IDF!$B$6 -> 0.1895627711 | J28: =D28+2*E28*IDF!$B$6+F28*IDF!$B$6^2+G28 -> 0.0001104622146
A29: i24h | B29: -0.09414 | C29: 0.007447 | D29: 0.003703 | E29: -0.0001399 | F29: 5.313e-06 | G29: 4.428e-05 | I29: =B29+C29*IDF!$B$6 -> 0.1149294494 | J29: =D29+2*E29*IDF!$B$6+F29*IDF!$B$6^2+G29 -> 7.961886219e-05
A30: i48h | B30: -0.007788 | C30: 0.00262 | D30: 0.001225 | E30: -4.626e-05 | F30: 1.758e-06 | G30: 1.502e-05 | I30: =B30+C30*IDF!$B$6 -> 0.06576671431 | J30: =D30+2*E30*IDF!$B$6+F30*IDF!$B$6^2+G30 -> 2.818226954e-05
A33: L-CV
B35: L-CV | E35: Kappa
A36: Variabel | B36: mean | C36: res. var | D36: pred. var. | E36: mean | F36: res.var. | G36: pred. var.
A37: i1m | B37: 0.6202 | C37: 0.0001908 | D37: 0.0002077 | E37: -0.3876168978 | F37: 0.001289589008 | G37: 0.001403813611
A38: i2m | B38: 0.5646 | C38: 0 | D38: 1.842e-05 | E38: -0.2288345731 | F38: 0 | G38: 0.0001812700818
A39: i5m | B39: 0.5435 | C39: 0 | D39: 2.037e-05 | E39: -0.1600735971 | F39: 0 | G39: 0.0002334494394
A40: i10m | B40: 0.5143 | C40: 0 | D40: 2.168e-05 | E40: -0.0556095664 | F40: 0 | G40: 0.0003098797383
A41: i30m | B41: 0.5418 | C41: 0.0003753 | D41: 0.0004088 | E41: -0.1543004799 | F41: 0.004355344991 | G41: 0.004744111464
A42: i60m | B42: 0.542 | C42: 0.0003561 | D42: 0.0003939 | E42: -0.1549815498 | F42: 0.004126433281 | G42: 0.004564454
A43: i3h | B43: 0.5398 | C43: 0.0004684 | D43: 0.0005157 | E43: -0.147462023 | F43: 0.005516776191 | G43: 0.006073871652
A44: i6h | B44: 0.5408 | C44: 0 | D44: 4.061e-05 | E44: -0.150887574 | F44: 0 | G44: 0.0004747732676
A45: i12h | B45: 0.5396 | C45: 5.956e-05 | D45: 0.0001044 | E45: -0.1467753892 | F45: 0.000702533317 | G45: 0.001231438521
A46: i24h | B46: 0.5337 | C46: 0 | D46: 5.021e-05 | E46: -0.1262881769 | F46: 0 | G46: 0.0006188728209
A47: i48h | B47: 0.5188 | C47: 7.291e-05 | D47: 0.0001342 | E47: -0.07247494217 | F47: 0.001006438469 | G47: 0.001852476239

Sheet help1 (hidden)
A1: Variable | B1: i1m | D1: i2m | F1: i5m | H1: i10m | J1: i30m | L1: i60m | N1: i3h | P1: i6h | R1: i12h | T1: i24h | V1: i48h
A3: q0 | B3: =Tables!$L$4 -> 16.7 | D3: =Tables!$L$5 -> 14.9 | F3: =Tables!$L$6 -> 10.6 | H3: =Tables!$L$7 -> 7.34 | J3: =Tables!$L$8 -> 3.74 | L3: =Tables!$L$9 -> 2.39 | N3: =Tables!$L$10 -> 1.19 | P3: =Tables!$L$11 -> 0.753 | R3: =Tables!$L$12 -> 0.453 | T3: =Tables!$L$13 -> 0.267 | V3: =Tables!$L$14 -> 0.16
A4: lambda | B4: =Tables!$I$4 -> 4.133320382 | D4: =Tables!$I$5 -> 3.078823968 | F4: =Tables!$I$6 -> 2.96857758 | H4: =Tables!$I$7 -> 2.872536025 | J4: =Tables!$I$8 -> 2.842839164 | L4: =Tables!$I$9 -> 2.841709218 | N4: =Tables!$I$10 -> 2.771232587 | P4: =Tables!$I$11 -> 2.686889932 | R4: =Tables!$I$12 -> 2.599045544 | T4: =Tables!$I$13 -> 2.477719784 | V4: =Tables!$I$14 -> 2.401625017
A5: mean | B5: =Tables!$I$20 -> 5.394 | D5: =Tables!I21 -> 5.688 | F5: =Tables!I22 -> 4.791 | H5: =Tables!I23 -> 3.877 | J5: =Tables!I24 -> 1.951 | L5: =Tables!I25 -> 1.163 | N5: =Tables!I26 -> 0.5147218959 | P5: =Tables!I27 -> 0.3084827482 | R5: =Tables!I28 -> 0.1895627711 | T5: =Tables!I29 -> 0.1149294494 | V5: =Tables!I30 -> 0.06576671431
A6: kappa | B6: =Tables!$E$37 -> -0.3876168978 | D6: =Tables!$E$38 -> -0.2288345731 | F6: =Tables!$E$39 -> -0.1600735971 | H6: =Tables!$E$40 -> -0.0556095664 | J6: =Tables!$E$41 -> -0.1543004799 | L6: =Tables!$E$42 -> -0.1549815498 | N6: =Tables!$E$43 -> -0.147462023 | P6: =Tables!$E$44 -> -0.150887574 | R6: =Tables!$E$45 -> -0.1467753892 | T6: =Tables!$E$46 -> -0.1262881769 | V6: =Tables!$E$47 -> -0.07247494217
A7: V_lambda | B7: =Tables!$J$4 -> 0.2959336924 | D7: =Tables!$J$5 -> 0.09946326982 | F7: =Tables!$J$6 -> 0.08537830439 | H7: =Tables!$J$7 -> 0.1024782164 | J7: =Tables!$J$8 -> 0.07973554279 | L7: =Tables!$J$9 -> 0.100118184 | N7: =Tables!$J$10 -> 0.1243862774 | P7: =Tables!$J$11 -> 0.1678319505 | R7: =Tables!$J$12 -> 0.1511122837 | T7: =Tables!$J$13 -> 0.1349676371 | V7: =Tables!$J$14 -> 0.08648218236
A8: V_mean | B8: =Tables!$J$20 -> 0.18 | D8: =Tables!J21 -> 0.18903 | F8: =Tables!J22 -> 0.08256 | H8: =Tables!J23 -> 0.017673 | J8: =Tables!J24 -> 0.013122 | L8: =Tables!J25 -> 0.00808 | N8: =Tables!J26 -> 0.001733256869 | P8: =Tables!J27 -> 0.0004352170598 | R8: =Tables!J28 -> 0.0001104622146 | T8: =Tables!J29 -> 7.961886219e-05 | V8: =Tables!J30 -> 2.818226954e-05
A9: V_kappa | B9: =Tables!$G$37 -> 0.001403813611 | D9: =Tables!$G$38 -> 0.0001812700818 | F9: =Tables!$G$39 -> 0.0002334494394 | H9: =Tables!$G$40 -> 0.0003098797383 | J9: =Tables!$G$41 -> 0.004744111464 | L9: =Tables!$G$42 -> 0.004564454 | N9: =Tables!$G$43 -> 0.006073871652 | P9: =Tables!$G$44 -> 0.0004747732676 | R9: =Tables!$G$45 -> 0.001231438521 | T9: =Tables!$G$46 -> 0.0006188728209 | V9: =Tables!$G$47 -> 0.001852476239
A11: Min Lanbda | C11: =MIN(B4:V4) -> 2.401625017
A13: T | B13: z_T | C13: S(z_T) | D13: z_T | E13: S(z_T) | F13: z_T | G13: S(z_T) | H13: z_T | I13: S(z_T) | J13: z_T | K13: S(z_T) | L13: z_T | M13: S(z_T) | N13: z_T | O13: S(z_T) | P13: z_T | Q13: S(z_T) | R13: z_T | S13: S(z_T) | T13: z_T | U13: S(z_T) | V13: z_T | W13: S(z_T)
A14: =IDF!B8 -> 5 | B14: =B$5*(1+B$6)/B$6*(1-(1/($A14*B$4))^B$6)+B$3 -> 35.74281468 | C14: =SQRT(((1+B$6)*B$5*$A14*(B$4*$A14)^(-B$6-1))^2*B$7+((1+B$6)/B$6*(1-(1/($A14*B$4))^B$6))^2*B$8+((1+B$6)*B$5*((B$4*$A14)^(-B$6)/B$6*LN(B$4*$A14)-1/B$6^2*(1-(B$4*$A14)^(-B$6))))^2*B$9) -> 2.424349413 | D14: =D$5*(1+D$6)/D$6*(1-(1/($A14*D$4))^D$6)+D$3 -> 31.56545543 | E14: =SQRT(((1+D$6)*D$5*$A14*(D$4*$A14)^(-D$6-1))^2*D$7+((1+D$6)/D$6*(1-(1/($A14*D$4))^D$6))^2*D$8+((1+D$6)*D$5*((D$4*$A14)^(-D$6)/D$6*LN(D$4*$A14)-1/D$6^2*(1-(D$4*$A14)^(-D$6))))^2*D$9) -> 1.562962717 | F14: =F$5*(1+F$6)/F$6*(1-(1/($A14*F$4))^F$6)+F$3 -> 24.17580347 | G14: =SQRT(((1+F$6)*F$5*$A14*(F$4*$A14)^(-F$6-1))^2*F$7+((1+F$6)/F$6*(1-(1/($A14*F$4))^F$6))^2*F$8+((1+F$6)*F$5*((F$4*$A14)^(-F$6)/F$6*LN(F$4*$A14)-1/F$6^2*(1-(F$4*$A14)^(-F$6))))^2*F$9) -> 1.060608522 | H14: =H$5*(1+H$6)/H$6*(1-(1/($A14*H$4))^H$6)+H$3 -> 17.85619783 | I14: =SQRT(((1+H$6)*H$5*$A14*(H$4*$A14)^(-H$6-1))^2*H$7+((1+H$6)/H$6*(1-(1/($A14*H$4))^H$6))^2*H$8+((1+H$6)*H$5*((H$4*$A14)^(-H$6)/H$6*LN(H$4*$A14)-1/H$6^2*(1-(H$4*$A14)^(-H$6))))^2*H$9) -> 0.6463932371 | J14: =J$5*(1+J$6)/J$6*(1-(1/($A14*J$4))^J$6)+J$3 -> 9.152245808 | K14: =SQRT(((1+J$6)*J$5*$A14*(J$4*$A14)^(-J$6-1))^2*J$7+((1+J$6)/J$6*(1-(1/($A14*J$4))^J$6))^2*J$8+((1+J$6)*J$5*((J$4*$A14)^(-J$6)/J$6*LN(J$4*$A14)-1/J$6^2*(1-(J$4*$A14)^(-J$6))))^2*J$9) -> 0.6641678857 | L14: =L$5*(1+L$6)/L$6*(1-(1/($A14*L$4))^L$6)+L$3 -> 5.616190732 | M14: =SQRT(((1+L$6)*L$5*$A14*(L$4*$A14)^(-L$6-1))^2*L$7+((1+L$6)/L$6*(1-(1/($A14*L$4))^L$6))^2*L$8+((1+L$6)*L$5*((L$4*$A14)^(-L$6)/L$6*LN(L$4*$A14)-1/L$6^2*(1-(L$4*$A14)^(-L$6))))^2*L$9) -> 0.4300126432 | N14: =N$5*(1+N$6)/N$6*(1-(1/($A14*N$4))^N$6)+N$3 -> 2.599037573 | O14: =SQRT(((1+N$6)*N$5*$A14*(N$4*$A14)^(-N$6-1))^2*N$7+((1+N$6)/N$6*(1-(1/($A14*N$4))^N$6))^2*N$8+((1+N$6)*N$5*((N$4*$A14)^(-N$6)/N$6*LN(N$4*$A14)-1/N$6^2*(1-(N$4*$A14)^(-N$6))))^2*N$9) -> 0.2082414616 | P14: =P$5*(1+P$6)/P$6*(1-(1/($A14*P$4))^P$6)+P$3 -> 1.586104518 | Q14: =SQRT(((1+P$6)*P$5*$A14*(P$4*$A14)^(-P$6-1))^2*P$7+((1+P$6)/P$6*(1-(1/($A14*P$4))^P$6))^2*P$8+((1+P$6)*P$5*((P$4*$A14)^(-P$6)/P$6*LN(P$4*$A14)-1/P$6^2*(1-(P$4*$A14)^(-P$6))))^2*P$9) -> 0.08543033108 | R14: =R$5*(1+R$6)/R$6*(1-(1/($A14*R$4))^R$6)+R$3 -> 0.9566536964 | S14: =SQRT(((1+R$6)*R$5*$A14*(R$4*$A14)^(-R$6-1))^2*R$7+((1+R$6)/R$6*(1-(1/($A14*R$4))^R$6))^2*R$8+((1+R$6)*R$5*((R$4*$A14)^(-R$6)/R$6*LN(R$4*$A14)-1/R$6^2*(1-(R$4*$A14)^(-R$6))))^2*R$9) -> 0.05101081115 | T14: =T$5*(1+T$6)/T$6*(1-(1/($A14*T$4))^T$6)+T$3 -> 0.5645011233 | U14: =SQRT(((1+T$6)*T$5*$A14*(T$4*$A14)^(-T$6-1))^2*T$7+((1+T$6)/T$6*(1-(1/($A14*T$4))^T$6))^2*T$8+((1+T$6)*T$5*((T$4*$A14)^(-T$6)/T$6*LN(T$4*$A14)-1/T$6^2*(1-(T$4*$A14)^(-T$6))))^2*T$9) -> 0.03237663405 | V14: =V$5*(1+V$6)/V$6*(1-(1/($A14*V$4))^V$6)+V$3 -> 0.3261363538 | W14: =SQRT(((1+V$6)*V$5*$A14*(V$4*$A14)^(-V$6-1))^2*V$7+((1+V$6)/V$6*(1-(1/($A14*V$4))^V$6))^2*V$8+((1+V$6)*V$5*((V$4*$A14)^(-V$6)/V$6*LN(V$4*$A14)-1/V$6^2*(1-(V$4*$A14)^(-V$6))))^2*V$9) -> 0.01853696448
A16: Dur(min) | B16: z_T | C16: S_T
A17: 1 | B17: =B14 -> 35.74281468 | C17: =C14 -> 2.424349413
A18: 2 | B18: =D14 -> 31.56545543 | C18: =E14 -> 1.562962717
A19: 5 | B19: =F14 -> 24.17580347 | C19: =G14 -> 1.060608522
A20: 10 | B20: =H14 -> 17.85619783 | C20: =I14 -> 0.6463932371
A21: 30 | B21: =J14 -> 9.152245808 | C21: =K14 -> 0.6641678857
A22: 60 | B22: =L14 -> 5.616190732 | C22: =M14 -> 0.4300126432
A23: 180 | B23: =N14 -> 2.599037573 | C23: =O14 -> 0.2082414616
A24: 360 | B24: =P14 -> 1.586104518 | C24: =Q14 -> 0.08543033108
A25: 720 | B25: =R14 -> 0.9566536964 | C25: =S14 -> 0.05101081115
A26: 1440 | B26: =T14 -> 0.5645011233 | C26: =U14 -> 0.03237663405
A27: 2880 | B27: =V14 -> 0.3261363538 | C27: =W14 -> 0.01853696448

Sheet help3 (hidden)
A1: Variable | C1: bv1 | D1: bv2 | M1: LAMBDA
A3: z0 | C3: =Q4 -> 17.8 | D3: =Q5 -> 6.26 | M3: Variable | N3: b_0 | O3: b_1 | Q3: z_0 | R3: E(lambda)
A4: lambda | C4: =R4 -> 2.451942505 | D4: =R5 -> 2.866285203 | M4: bv1 | N4: -2.855 | O4: 0.008384 | Q4: 17.8 | R4: =N4+O4*IDF!$B$5 -> 2.451942505
A5: mean | C5: =Q10 -> 11.65158984 | D5: =Q11 -> 4.98 | M5: bv2 | N5: 1.932 | O5: 0.001476 | Q5: 6.26 | R5: =N5+O5*IDF!$B$5 -> 2.866285203
A6: kappa | C6: =O17 -> -0.1641270424 | D6: =O18 -> -0.2212735681
M7: MEAN
G9: Incl. koblede regn, f-faktor 0, s-faktor 1 | M9: Variable | N9: b_0 | O9: b_1 | Q9: E(mean)
A10: T = | B10: =IDF!B8 -> 5 | C10: =C$5*(1+C$6)/C$6*(1-(1/($B10*C$4))^C$6)+C$3 -> 47.99561947 | D10: =D$5*(1+D$6)/D$6*(1-(1/($B10*D$4))^D$6)+D$3 -> 20.32329556 | F10: 0.1 | G10: =C10 -> 47.99561947 | M10: bv1 | N10: -11.01 | O10: 0.8072 | Q10: =N10+O10*IDF!B6 -> 11.65158984
F11: 1 | G11: =D10 -> 20.32329556 | M11: bv2 | N11: 4.98 | O11: 0 | Q11: =N11+O11*IDF!B6 -> 4.98
M13: L-CV
O15: Kappa
M16: Variable | N16: mean | O16: mean
M17: bv1 | N17: 0.5447 | O17: =1/N17-2 -> -0.1641270424
M18: bv2 | N18: 0.5622 | O18: =1/N18-2 -> -0.2212735681
B26: 1 | C26: =C$5*(1+C$6)/C$6*(1-(1/($B26*C$4))^C$6)+C$3 -> 27.21058666 | D26: 10.85862409
B27: 2 | C27: 35.49416245 | D27: 14.52606397
B28: 5 | C28: 47.99561947 | D28: 20.32329556
B29: 10 | C29: 58.78353977 | D29: 25.55962051
B30: 20 | C30: 70.87127371 | D30: 31.66393037
B31: 50 | C31: 89.11391316 | D31: 41.31319504
B32: 100 | C32: 104.8560895 | D32: 50.02885258
